[Event "Titled Tuesday Blitz October 31 Early 2023"]
[White "Daneshvar, Bardiya"]
[Black "Andreikin, Dmitry"]
[WhiteFideId "12576468"]
[BlackFideId "4158814"]
[WhiteElo "2961"]
[BlackElo "3102"]
[Result "0-1"]
[Round "11"]
[TimeControl "180+1"]
[Date "2023.10.31"]
[WhiteClock "0:00:29"]
[BlackClock "0:00:38"]
[Board "4"]

1. Nf3 {[%clk 0:02:09]}  Nf6 {[%clk 0:02:31]} 2. g3 {[%clk 0:02:09]}  d5 {[%clk 0:02:29]} 3. Bg2 {[%clk 0:02:09]}  c6 {[%clk 0:02:29]} 4. O-O {[%clk 0:02:09]}  Bf5 {[%clk 0:02:28]} 5. d3 {[%clk 0:02:10]}  h6 {[%clk 0:02:26]} 6. c4 {[%clk 0:02:09]}  dxc4 {[%clk 0:02:23]} 7. d4 {[%clk 0:02:04]}  Nbd7 {[%clk 0:02:08]} 8. Nbd2 {[%clk 0:02:03]}  Nb6 {[%clk 0:02:06]} 9. Ne5 {[%clk 0:02:02]}  Qxd4 {[%clk 0:02:01]} 10. Nxc6 {[%clk 0:02:01]}  bxc6 {[%clk 0:01:51]} 11. Bxc6+ {[%clk 0:02:00]}  Bd7 {[%clk 0:01:48]} 12. Bxa8 {[%clk 0:02:00]}  Nxa8 {[%clk 0:01:49]} 13. Qc2 {[%clk 0:02:01]}  Nb6 {[%clk 0:01:40]} 14. Nf3 {[%clk 0:02:00]}  Qe4 {[%clk 0:01:35]} 15. Qd2 {[%clk 0:01:58]}  e6 {[%clk 0:01:27]} 16. Qa5 {[%clk 0:01:53]}  Qxe2 {[%clk 0:01:24]} 17. Ne5 {[%clk 0:01:50]}  Bb4 {[%clk 0:01:14]} 18. Qxb4 {[%clk 0:01:47]}  Qxe5 {[%clk 0:01:14]} 19. Re1 {[%clk 0:01:42]}  Nfd5 {[%clk 0:01:08]} 20. Qa5 {[%clk 0:01:41]}  Qf5 {[%clk 0:01:03]} 21. Qa3 {[%clk 0:01:29]}  f6 {[%clk 0:00:59]} 22. Bd2 {[%clk 0:01:26]}  Kf7 {[%clk 0:00:58]} 23. Qxa7 {[%clk 0:01:26]}  Kg6 {[%clk 0:00:53]} 24. Qb7 {[%clk 0:01:08]}  Rc8 {[%clk 0:00:49]} 25. Qa6 {[%clk 0:00:50]}  Ra8 {[%clk 0:00:42]} 26. Qb7 {[%clk 0:00:49]}  Rc8 {[%clk 0:00:41]} 27. Qa6 {[%clk 0:00:46]}  Bc6 {[%clk 0:00:42]} 28. Qa3 {[%clk 0:00:46]}  c3 {[%clk 0:00:39]} 29. Bxc3 {[%clk 0:00:29]}  Qf3 {[%clk 0:00:38]} 0-1


[Site "https://www.chess.com"]

[Event "Titled Tuesday Blitz October 31 Early 2023"]
[White "Le, Tuan Minh"]
[Black "Pranav Anand"]
[WhiteFideId "12401153"]
[BlackFideId "46626786"]
[WhiteElo "2988"]
[BlackElo "2929"]
[Result "1-0"]
[Round "11"]
[TimeControl "180+1"]
[Date "2023.10.31"]
[WhiteClock "0:00:07"]
[BlackClock "0:00:03"]
[Board "6"]

1. d4 {[%clk 0:03:00]}  Nf6 {[%clk 0:02:59]} 2. Nf3 {[%clk 0:02:59]}  g6 {[%clk 0:02:59]} 3. Bg5 {[%clk 0:02:56]}  Ne4 {[%clk 0:02:58]} 4. Bh4 {[%clk 0:02:56]}  d5 {[%clk 0:02:57]} 5. Nbd2 {[%clk 0:02:56]}  Nd6 {[%clk 0:02:57]} 6. e3 {[%clk 0:02:56]}  Bg7 {[%clk 0:02:57]} 7. c4 {[%clk 0:02:56]}  Nf5 {[%clk 0:02:55]} 8. Bg5 {[%clk 0:02:52]}  c6 {[%clk 0:02:54]} 9. Bd3 {[%clk 0:02:50]}  O-O {[%clk 0:02:54]} 10. O-O {[%clk 0:02:51]}  Na6 {[%clk 0:02:50]} 11. Rc1 {[%clk 0:02:49]}  Nb4 {[%clk 0:02:49]} 12. Bb1 {[%clk 0:02:49]}  a5 {[%clk 0:02:50]} 13. a3 {[%clk 0:02:46]}  Na6 {[%clk 0:02:50]} 14. h3 {[%clk 0:02:42]}  Nc7 {[%clk 0:02:49]} 15. Bf4 {[%clk 0:02:38]}  Na6 {[%clk 0:02:42]} 16. cxd5 {[%clk 0:02:34]}  cxd5 {[%clk 0:02:43]} 17. Qb3 {[%clk 0:02:31]}  e6 {[%clk 0:02:16]} 18. Rc3 {[%clk 0:02:19]}  Ne7 {[%clk 0:02:04]} 19. Rfc1 {[%clk 0:02:15]}  Nc6 {[%clk 0:02:04]} 20. Bd3 {[%clk 0:02:10]}  f6 {[%clk 0:01:53]} 21. Bb5 {[%clk 0:02:07]}  Bd7 {[%clk 0:01:52]} 22. Bg3 {[%clk 0:01:32]}  Kh8 {[%clk 0:01:47]} 23. Ba4 {[%clk 0:01:22]}  Ra7 {[%clk 0:01:43]} 24. Bb5 {[%clk 0:01:17]}  Qa8 {[%clk 0:01:12]} 25. h4 {[%clk 0:01:09]}  Rc8 {[%clk 0:01:02]} 26. h5 {[%clk 0:01:09]}  g5 {[%clk 0:01:02]} 27. Bd3 {[%clk 0:01:06]}  Be8 {[%clk 0:00:55]} 28. Qb6 {[%clk 0:01:02]}  Nab8 {[%clk 0:00:45]} 29. h6 {[%clk 0:00:37]}  Bxh6 {[%clk 0:00:41]} 30. Qb3 {[%clk 0:00:37]}  Bf8 {[%clk 0:00:34]} 31. Qd1 {[%clk 0:00:33]}  Nd7 {[%clk 0:00:25]} 32. e4 {[%clk 0:00:33]}  Bf7 {[%clk 0:00:16]} 33. exd5 {[%clk 0:00:29]}  exd5 {[%clk 0:00:15]} 34. Bf5 {[%clk 0:00:30]}  Rd8 {[%clk 0:00:16]} 35. Bc7 {[%clk 0:00:30]}  Bg6 {[%clk 0:00:11]} 36. Qc2 {[%clk 0:00:27]}  Rc8 {[%clk 0:00:09]} 37. Bxg6 {[%clk 0:00:20]}  Rxc7 {[%clk 0:00:04]} 38. Bxh7 {[%clk 0:00:20]}  Nb6 {[%clk 0:00:02]} 39. Bf5 {[%clk 0:00:19]}  Bg7 {[%clk 0:00:01]} 40. Nxg5 {[%clk 0:00:17]}  fxg5 {[%clk 0:00:01]} 41. Rh3+ {[%clk 0:00:17]}  Kg8 {[%clk 0:00:02]} 42. Be6+ {[%clk 0:00:18]}  Kf8 {[%clk 0:00:03]} 43. Qf5+ {[%clk 0:00:18]}  Ke8 {[%clk 0:00:03]} 44. Nf3 {[%clk 0:00:12]}  Nc4 {[%clk 0:00:02]} 45. Bxd5 {[%clk 0:00:09]}  b5 {[%clk 0:00:02]} 46. Re1+ {[%clk 0:00:09]}  Re7 {[%clk 0:00:03]} 47. Qg6+ {[%clk 0:00:07]}  Kd8 {[%clk 0:00:03]} 48. Rc1 {[%clk 0:00:08]}  Qc8 {[%clk 0:00:02]} 49. Qxc6 {[%clk 0:00:06]}  Qxc6 {[%clk 0:00:02]} 50. Bxc6 {[%clk 0:00:06]}  Nxb2 {[%clk 0:00:02]} 51. Nxg5 {[%clk 0:00:06]}  a4 {[%clk 0:00:02]} 52. Bxb5 {[%clk 0:00:05]}  Rab7 {[%clk 0:00:03]} 53. Bc6 {[%clk 0:00:05]}  Rbc7 {[%clk 0:00:03]} 54. d5 {[%clk 0:00:06]}  Re2 {[%clk 0:00:03]} 55. Ne6+ {[%clk 0:00:05]}  Rxe6 {[%clk 0:00:03]} 56. dxe6 {[%clk 0:00:06]}  Ke7 {[%clk 0:00:04]} 57. Rf3 {[%clk 0:00:06]}  Kxe6 {[%clk 0:00:05]} 58. Bd5+ {[%clk 0:00:06]}  Kxd5 {[%clk 0:00:03]} 59. Rxc7 {[%clk 0:00:06]}  Be5 {[%clk 0:00:04]} 60. Rd7+ {[%clk 0:00:06]}  Ke4 {[%clk 0:00:04]} 61. Re7 {[%clk 0:00:07]}  Nc4 {[%clk 0:00:04]} 62. Rc3 {[%clk 0:00:06]}  Kd5 {[%clk 0:00:04]} 63. Rxc4 {[%clk 0:00:07]}  Bd6 {[%clk 0:00:03]} 64. Rd7 {[%clk 0:00:07]} 1-0


[Site "https://www.chess.com"]

[Event "Titled Tuesday Blitz October 31 Early 2023"]
[White "Bharath Subramaniyam H"]
[Black "Shimanov, Aleksandr"]
[WhiteFideId "46634827"]
[BlackFideId "4198603"]
[WhiteElo "2906"]
[BlackElo "2974"]
[Result "1-0"]
[Round "11"]
[TimeControl "180+1"]
[Date "2023.10.31"]
[WhiteClock "0:00:17"]
[BlackClock "0:00:00"]
[Board "7"]

1. e4 {[%clk 0:03:00]}  e5 {[%clk 0:02:55]} 2. Nf3 {[%clk 0:03:01]}  Nc6 {[%clk 0:02:55]} 3. d4 {[%clk 0:03:02]}  exd4 {[%clk 0:02:52]} 4. Nxd4 {[%clk 0:03:02]}  Qf6 {[%clk 0:02:52]} 5. Nf3 {[%clk 0:03:02]}  Bb4+ {[%clk 0:02:49]} 6. c3 {[%clk 0:03:03]}  Bc5 {[%clk 0:02:49]} 7. Bd3 {[%clk 0:03:03]}  d6 {[%clk 0:02:48]} 8. O-O {[%clk 0:02:59]}  h6 {[%clk 0:02:46]} 9. h3 {[%clk 0:02:50]}  Nge7 {[%clk 0:02:44]} 10. Nbd2 {[%clk 0:02:45]}  g5 {[%clk 0:02:44]} 11. Nb3 {[%clk 0:02:44]}  Bb6 {[%clk 0:02:39]} 12. Nfd4 {[%clk 0:02:43]}  g4 {[%clk 0:02:35]} 13. hxg4 {[%clk 0:02:42]}  Rg8 {[%clk 0:02:33]} 14. Be2 {[%clk 0:02:39]}  Ne5 {[%clk 0:02:31]} 15. f3 {[%clk 0:02:36]}  Be6 {[%clk 0:01:46]} 16. Be3 {[%clk 0:02:33]}  O-O-O {[%clk 0:01:40]} 17. Qd2 {[%clk 0:02:33]}  d5 {[%clk 0:01:31]} 18. Bxh6 {[%clk 0:01:58]}  dxe4 {[%clk 0:01:25]} 19. Qf4 {[%clk 0:01:41]}  Qh4 {[%clk 0:01:08]} 20. Qh2 {[%clk 0:01:26]}  Qf6 {[%clk 0:00:55]} 21. g5 {[%clk 0:01:06]}  Qh8 {[%clk 0:00:37]} 22. fxe4 {[%clk 0:01:06]}  N7c6 {[%clk 0:00:21]} 23. Kh1 {[%clk 0:00:52]}  Ng4 {[%clk 0:00:11]} 24. Bxg4 {[%clk 0:00:47]}  Bxg4 {[%clk 0:00:12]} 25. Rxf7 {[%clk 0:00:43]}  Ne5 {[%clk 0:00:10]} 26. Rf6 {[%clk 0:00:42]}  Rde8 {[%clk 0:00:09]} 27. Raf1 {[%clk 0:00:41]}  Bd7 {[%clk 0:00:09]} 28. Nd2 {[%clk 0:00:33]}  Ng4 {[%clk 0:00:10]} 29. Qh4 {[%clk 0:00:31]}  Nxf6 {[%clk 0:00:09]} 30. Rxf6 {[%clk 0:00:28]}  Bc5 {[%clk 0:00:07]} 31. Nf5 {[%clk 0:00:24]}  Bxf5 {[%clk 0:00:05]} 32. exf5 {[%clk 0:00:20]}  Be7 {[%clk 0:00:05]} 33. Re6 {[%clk 0:00:20]}  Bd8 {[%clk 0:00:03]} 34. Rxe8 {[%clk 0:00:19]}  Rxe8 {[%clk 0:00:04]} 35. Nf3 {[%clk 0:00:20]}  Qg8 {[%clk 0:00:03]} 36. f6 {[%clk 0:00:20]}  Qd5 {[%clk 0:00:03]} 37. Qg4+ {[%clk 0:00:20]}  Kb8 {[%clk 0:00:03]} 38. Qf4 {[%clk 0:00:21]}  Qd1+ {[%clk 0:00:02]} 39. Kh2 {[%clk 0:00:21]}  Qd5 {[%clk 0:00:01]} 40. f7 {[%clk 0:00:22]}  Re4 {[%clk 0:00:01]} 41. f8=Q {[%clk 0:00:21]}  Rxf4 {[%clk 0:00:01]} 42. Qxf4 {[%clk 0:00:22]}  Be7 {[%clk 0:00:02]} 43. Qg4 {[%clk 0:00:21]}  Bd6+ {[%clk 0:00:03]} 44. Kh3 {[%clk 0:00:20]}  b5 {[%clk 0:00:02]} 45. g6 {[%clk 0:00:18]}  Qg8 {[%clk 0:00:02]} 46. g7 {[%clk 0:00:18]}  Kb7 {[%clk 0:00:02]} 47. Qe4+ {[%clk 0:00:18]}  Kb6 {[%clk 0:00:02]} 48. Qf5 {[%clk 0:00:18]}  a6 {[%clk 0:00:00]} 49. Nd4 {[%clk 0:00:17]} 1-0


[Site "https://www.chess.com"]

[Event "Titled Tuesday Blitz October 31 Early 2023"]
[White "Mitrabha, Guha"]
[Black "Szpar, Milosz"]
[WhiteFideId "5057000"]
[BlackFideId "1184989"]
[WhiteElo "2853"]
[BlackElo "2740"]
[Result "0-1"]
[Round "11"]
[TimeControl "180+1"]
[Date "2023.10.31"]
[WhiteClock "0:00:10"]
[BlackClock "0:00:13"]
[Board "10"]

1. d4 {[%clk 0:03:00]}  d5 {[%clk 0:03:00]} 2. Nf3 {[%clk 0:03:00]}  Nf6 {[%clk 0:02:59]} 3. Bf4 {[%clk 0:02:59]}  c5 {[%clk 0:02:56]} 4. e3 {[%clk 0:03:00]}  Nc6 {[%clk 0:02:55]} 5. Nbd2 {[%clk 0:03:00]}  e6 {[%clk 0:02:52]} 6. c3 {[%clk 0:03:00]}  cxd4 {[%clk 0:02:53]} 7. exd4 {[%clk 0:02:58]}  Nh5 {[%clk 0:02:53]} 8. Be5 {[%clk 0:02:57]}  f6 {[%clk 0:02:52]} 9. Bg3 {[%clk 0:02:49]}  g6 {[%clk 0:02:53]} 10. Bd3 {[%clk 0:02:48]}  Bh6 {[%clk 0:02:48]} 11. O-O {[%clk 0:02:45]}  O-O {[%clk 0:02:48]} 12. Re1 {[%clk 0:02:38]}  Ne7 {[%clk 0:02:29]} 13. c4 {[%clk 0:02:32]}  Nf4 {[%clk 0:02:25]} 14. Bf1 {[%clk 0:02:28]}  dxc4 {[%clk 0:02:25]} 15. Nxc4 {[%clk 0:02:26]}  Ned5 {[%clk 0:02:25]} 16. Qb3 {[%clk 0:02:23]}  b6 {[%clk 0:02:24]} 17. Rac1 {[%clk 0:02:21]}  Qd7 {[%clk 0:02:18]} 18. Ne3 {[%clk 0:02:14]}  Bb7 {[%clk 0:02:17]} 19. Bb5 {[%clk 0:02:13]}  Qf7 {[%clk 0:02:12]} 20. Bc4 {[%clk 0:01:52]}  Rac8 {[%clk 0:02:11]} 21. Ng4 {[%clk 0:01:45]}  Bg7 {[%clk 0:02:03]} 22. h3 {[%clk 0:01:24]}  g5 {[%clk 0:02:02]} 23. Ne3 {[%clk 0:01:19]}  h5 {[%clk 0:01:50]} 24. Bxf4 {[%clk 0:01:18]}  Nxf4 {[%clk 0:01:50]} 25. Bf1 {[%clk 0:01:09]}  Bxf3 {[%clk 0:01:08]} 26. gxf3 {[%clk 0:00:54]}  Rcd8 {[%clk 0:01:07]} 27. Red1 {[%clk 0:00:54]}  f5 {[%clk 0:01:07]} 28. Bc4 {[%clk 0:00:53]}  Bxd4 {[%clk 0:00:56]} 29. Ng2 {[%clk 0:00:51]}  Kh7 {[%clk 0:00:40]} 30. Nxf4 {[%clk 0:00:50]}  gxf4 {[%clk 0:00:41]} 31. Bxe6 {[%clk 0:00:22]}  Qg6+ {[%clk 0:00:40]} 32. Kf1 {[%clk 0:00:23]}  Bxf2 {[%clk 0:00:23]} 33. Rxd8 {[%clk 0:00:18]}  Rxd8 {[%clk 0:00:21]} 34. Rc7+ {[%clk 0:00:13]}  Kh6 {[%clk 0:00:21]} 35. Ke2 {[%clk 0:00:11]}  Be3 {[%clk 0:00:20]} 36. Bd7 {[%clk 0:00:10]}  Qg2+ {[%clk 0:00:18]} 37. Kd3 {[%clk 0:00:10]}  Qd2+ {[%clk 0:00:18]} 38. Kc4 {[%clk 0:00:11]}  Rxd7 {[%clk 0:00:18]} 39. Rc8 {[%clk 0:00:10]}  Qd5+ {[%clk 0:00:13]} 40. Kb4 {[%clk 0:00:10]}  Qa5+ {[%clk 0:00:13]} 41. Kc4 {[%clk 0:00:10]}  Rd4# {[%clk 0:00:13]} 0-1


[Site "https://www.chess.com"]

[Event "Titled Tuesday Blitz October 31 Early 2023"]
[White "Martinez Alcantara, Jose Eduardo"]
[Black "Hambleton, Aman"]
[WhiteFideId "3805662"]
[BlackFideId "2606577"]
[WhiteElo "3115"]
[BlackElo "2815"]
[Result "1-0"]
[Round "11"]
[TimeControl "180+1"]
[Date "2023.10.31"]
[WhiteClock "0:01:44"]
[BlackClock "0:00:00"]
[Board "11"]

1. e4 {[%clk 0:03:00]}  b6 {[%clk 0:02:58]} 2. d4 {[%clk 0:03:01]}  Bb7 {[%clk 0:02:57]} 3. Bd3 {[%clk 0:03:02]}  e6 {[%clk 0:02:57]} 4. Qe2 {[%clk 0:03:02]}  d5 {[%clk 0:02:57]} 5. exd5 {[%clk 0:03:01]}  Qxd5 {[%clk 0:02:57]} 6. Nf3 {[%clk 0:03:02]}  Nf6 {[%clk 0:02:57]} 7. Nbd2 {[%clk 0:03:02]}  Bd6 {[%clk 0:02:50]} 8. c3 {[%clk 0:03:00]}  Nbd7 {[%clk 0:02:47]} 9. Nc4 {[%clk 0:03:00]}  Qh5 {[%clk 0:02:44]} 10. h3 {[%clk 0:02:46]}  Bxf3 {[%clk 0:02:30]} 11. Qxf3 {[%clk 0:02:47]}  Qxf3 {[%clk 0:02:30]} 12. gxf3 {[%clk 0:02:48]}  Nd5 {[%clk 0:02:20]} 13. Nxd6+ {[%clk 0:02:39]}  cxd6 {[%clk 0:02:17]} 14. c4 {[%clk 0:02:40]}  N5f6 {[%clk 0:01:57]} 15. Bd2 {[%clk 0:02:36]}  d5 {[%clk 0:01:20]} 16. b3 {[%clk 0:02:35]}  O-O {[%clk 0:01:19]} 17. O-O {[%clk 0:02:33]}  Rfc8 {[%clk 0:01:13]} 18. Rfe1 {[%clk 0:02:33]}  h6 {[%clk 0:01:08]} 19. a4 {[%clk 0:02:33]}  a5 {[%clk 0:01:08]} 20. Rac1 {[%clk 0:02:33]}  Rc6 {[%clk 0:00:52]} 21. f4 {[%clk 0:02:30]}  g6 {[%clk 0:00:48]} 22. f5 {[%clk 0:02:30]}  gxf5 {[%clk 0:00:40]} 23. Bxh6 {[%clk 0:02:26]}  Kh7 {[%clk 0:00:29]} 24. Bf4 {[%clk 0:02:24]}  Rcc8 {[%clk 0:00:20]} 25. Kh2 {[%clk 0:02:24]}  Nf8 {[%clk 0:00:16]} 26. Be5 {[%clk 0:02:21]}  N8d7 {[%clk 0:00:16]} 27. Bf4 {[%clk 0:02:16]}  Nf8 {[%clk 0:00:17]} 28. f3 {[%clk 0:02:12]}  Ng6 {[%clk 0:00:12]} 29. Bg5 {[%clk 0:02:12]}  Kg7 {[%clk 0:00:12]} 30. Rg1 {[%clk 0:02:02]}  dxc4 {[%clk 0:00:08]} 31. bxc4 {[%clk 0:02:03]}  Rd8 {[%clk 0:00:05]} 32. d5 {[%clk 0:02:04]}  exd5 {[%clk 0:00:05]} 33. Bxf5 {[%clk 0:02:03]}  dxc4 {[%clk 0:00:03]} 34. Rxc4 {[%clk 0:02:04]}  Rd5 {[%clk 0:00:02]} 35. Bb1 {[%clk 0:01:51]}  Ra7 {[%clk 0:00:03]} 36. Rc6 {[%clk 0:01:51]}  Nh7 {[%clk 0:00:02]} 37. Bc1 {[%clk 0:01:49]}  Nf8 {[%clk 0:00:02]} 38. h4 {[%clk 0:01:49]}  Rh5 {[%clk 0:00:02]} 39. Kg3 {[%clk 0:01:45]}  Rxh4 {[%clk 0:00:00]} 40. Bxg6 {[%clk 0:01:44]} 1-0


[Site "https://www.chess.com"]

[Event "Titled Tuesday Blitz October 31 Early 2023"]
[White "Fier, Alexandr"]
[Black "Ashraf, Artin"]
[WhiteFideId "2107139"]
[BlackFideId "22514805"]
[WhiteElo "2752"]
[BlackElo "2846"]
[Result "0-1"]
[Round "11"]
[TimeControl "180+1"]
[Date "2023.10.31"]
[WhiteClock "0:01:21"]
[BlackClock "0:01:29"]
[Board "14"]

1. e4 {[%clk 0:03:00]}  c5 {[%clk 0:02:59]} 2. Nf3 {[%clk 0:03:00]}  d6 {[%clk 0:02:59]} 3. d4 {[%clk 0:03:01]}  cxd4 {[%clk 0:03:00]} 4. Nxd4 {[%clk 0:03:01]}  Nf6 {[%clk 0:03:01]} 5. Nc3 {[%clk 0:03:02]}  a6 {[%clk 0:03:02]} 6. Bg5 {[%clk 0:03:02]}  Nc6 {[%clk 0:02:59]} 7. Nxc6 {[%clk 0:03:01]}  bxc6 {[%clk 0:02:59]} 8. Bc4 {[%clk 0:03:02]}  Qa5 {[%clk 0:02:59]} 9. Bxf6 {[%clk 0:03:02]}  gxf6 {[%clk 0:02:59]} 10. Bb3 {[%clk 0:03:02]}  h5 {[%clk 0:02:52]} 11. Qd2 {[%clk 0:03:02]}  e6 {[%clk 0:02:48]} 12. O-O-O {[%clk 0:03:02]}  h4 {[%clk 0:02:45]} 13. Kb1 {[%clk 0:03:03]}  Be7 {[%clk 0:02:43]} 14. g3 {[%clk 0:03:01]}  Bd7 {[%clk 0:02:42]} 15. f4 {[%clk 0:03:01]}  O-O-O {[%clk 0:02:41]} 16. Qe2 {[%clk 0:02:58]}  Kc7 {[%clk 0:02:39]} 17. Rd4 {[%clk 0:02:57]}  hxg3 {[%clk 0:02:37]} 18. Ra4 {[%clk 0:02:55]}  Rxh2 {[%clk 0:02:29]} 19. Rxh2 {[%clk 0:02:54]}  gxh2 {[%clk 0:02:29]} 20. Qxh2 {[%clk 0:02:54]}  Qb6 {[%clk 0:02:27]} 21. Bc4 {[%clk 0:02:39]}  Rb8 {[%clk 0:02:13]} 22. b3 {[%clk 0:02:33]}  Qd4 {[%clk 0:02:12]} 23. Qg3 {[%clk 0:02:23]}  d5 {[%clk 0:01:59]} 24. Bxa6 {[%clk 0:02:21]}  Bb4 {[%clk 0:01:58]} 25. Ne2 {[%clk 0:02:12]}  Qxe4 {[%clk 0:01:55]} 26. Bd3 {[%clk 0:02:11]}  Qh1+ {[%clk 0:01:53]} 27. Kb2 {[%clk 0:02:11]}  Bc5 {[%clk 0:01:51]} 28. Qg7 {[%clk 0:01:57]}  Qh5 {[%clk 0:01:45]} 29. Qxf6 {[%clk 0:01:55]}  Qh8 {[%clk 0:01:45]} 30. Qxh8 {[%clk 0:01:43]}  Rxh8 {[%clk 0:01:46]} 31. c4 {[%clk 0:01:43]}  f6 {[%clk 0:01:43]} 32. b4 {[%clk 0:01:42]}  Be3 {[%clk 0:01:43]} 33. c5 {[%clk 0:01:40]}  Kb7 {[%clk 0:01:43]} 34. Ba6+ {[%clk 0:01:40]}  Kb8 {[%clk 0:01:42]} 35. Bd3 {[%clk 0:01:38]}  e5 {[%clk 0:01:40]} 36. fxe5 {[%clk 0:01:38]}  fxe5 {[%clk 0:01:41]} 37. Ra6 {[%clk 0:01:38]}  Rh2 {[%clk 0:01:37]} 38. Rb6+ {[%clk 0:01:37]}  Kc7 {[%clk 0:01:37]} 39. Kb3 {[%clk 0:01:37]}  e4 {[%clk 0:01:34]} 40. Ba6 {[%clk 0:01:38]}  d4 {[%clk 0:01:35]} 41. Rb7+ {[%clk 0:01:37]}  Kd8 {[%clk 0:01:35]} 42. Ng3 {[%clk 0:01:35]}  Be6+ {[%clk 0:01:34]} 43. Bc4 {[%clk 0:01:35]}  Bxc4+ {[%clk 0:01:34]} 44. Kxc4 {[%clk 0:01:36]}  Rc2+ {[%clk 0:01:34]} 45. Kb3 {[%clk 0:01:30]}  Rc3+ {[%clk 0:01:35]} 46. Ka4 {[%clk 0:01:31]}  Bc1 {[%clk 0:01:35]} 47. Ka5 {[%clk 0:01:28]}  Rxg3 {[%clk 0:01:34]} 48. Kb6 {[%clk 0:01:29]}  Rg6 {[%clk 0:01:33]} 49. a4 {[%clk 0:01:24]}  e3 {[%clk 0:01:33]} 50. a5 {[%clk 0:01:25]}  e2 {[%clk 0:01:34]} 51. a6 {[%clk 0:01:26]}  e1=Q {[%clk 0:01:32]} 52. b5 {[%clk 0:01:21]}  cxb5+ {[%clk 0:01:31]} 53. Ka7 {[%clk 0:01:22]}  Qa5 {[%clk 0:01:30]} 54. Rb8+ {[%clk 0:01:22]}  Ke7 {[%clk 0:01:30]} 55. Rb7+ {[%clk 0:01:21]}  Kf8 {[%clk 0:01:30]} 56. Rb6 {[%clk 0:01:20]}  Rxb6 {[%clk 0:01:29]} 57. cxb6 {[%clk 0:01:20]}  d3 {[%clk 0:01:29]} 58. b7 {[%clk 0:01:21]}  Be3+ {[%clk 0:01:29]} 59. Kb8 {[%clk 0:01:21]}  Qd8# {[%clk 0:01:29]} 0-1


[Site "https://www.chess.com"]

[Event "Titled Tuesday Blitz October 31 Early 2023"]
[White "Kamsky, Gata"]
[Black "BardArtem"]
[WhiteFideId "2000024"]
[WhiteElo "2835"]
[BlackElo "2724"]
[Result "1-0"]
[Round "11"]
[TimeControl "180+1"]
[Date "2023.10.31"]
[WhiteClock "0:00:50"]
[BlackClock "0:00:01"]
[Board "15"]

1. e4 {[%clk 0:03:00]}  e5 {[%clk 0:02:55]} 2. Nf3 {[%clk 0:02:59]}  Nc6 {[%clk 0:02:53]} 3. Bb5 {[%clk 0:02:58]}  Nge7 {[%clk 0:02:53]} 4. c3 {[%clk 0:02:55]}  d5 {[%clk 0:02:53]} 5. d3 {[%clk 0:02:44]}  dxe4 {[%clk 0:02:52]} 6. dxe4 {[%clk 0:02:44]}  Qxd1+ {[%clk 0:02:53]} 7. Kxd1 {[%clk 0:02:44]}  Bd7 {[%clk 0:02:54]} 8. a4 {[%clk 0:02:42]}  O-O-O {[%clk 0:02:52]} 9. Kc2 {[%clk 0:02:38]}  a6 {[%clk 0:02:29]} 10. Be2 {[%clk 0:02:31]}  f5 {[%clk 0:02:09]} 11. Ng5 {[%clk 0:02:00]}  Rg8 {[%clk 0:02:00]} 12. f3 {[%clk 0:01:32]}  h6 {[%clk 0:01:53]} 13. Nh3 {[%clk 0:01:32]}  fxe4 {[%clk 0:01:52]} 14. fxe4 {[%clk 0:01:32]}  g5 {[%clk 0:01:44]} 15. Be3 {[%clk 0:01:31]}  Ng6 {[%clk 0:01:41]} 16. Nf2 {[%clk 0:01:30]}  Nf4 {[%clk 0:01:33]} 17. Bf1 {[%clk 0:01:29]}  Ne6 {[%clk 0:01:25]} 18. Nd3 {[%clk 0:01:26]}  Nf4 {[%clk 0:01:06]} 19. Nd2 {[%clk 0:01:25]}  Be6 {[%clk 0:01:05]} 20. g3 {[%clk 0:01:23]}  Ng6 {[%clk 0:00:55]} 21. Be2 {[%clk 0:01:22]}  Be7 {[%clk 0:00:49]} 22. b4 {[%clk 0:01:22]}  Rgf8 {[%clk 0:00:36]} 23. Rhf1 {[%clk 0:01:21]}  Rxf1 {[%clk 0:00:33]} 24. Rxf1 {[%clk 0:01:19]}  Rf8 {[%clk 0:00:33]} 25. Rb1 {[%clk 0:01:07]}  Nb8 {[%clk 0:00:28]} 26. Nc5 {[%clk 0:01:04]}  Bxc5 {[%clk 0:00:19]} 27. Bxc5 {[%clk 0:01:04]}  Rd8 {[%clk 0:00:16]} 28. Bh5 {[%clk 0:01:02]}  Nf8 {[%clk 0:00:10]} 29. Be7 {[%clk 0:01:02]}  Nc6 {[%clk 0:00:04]} 30. Bxd8 {[%clk 0:01:01]}  Kxd8 {[%clk 0:00:05]} 31. Rf1 {[%clk 0:01:00]}  Ke7 {[%clk 0:00:04]} 32. Be2 {[%clk 0:00:58]}  Nd7 {[%clk 0:00:02]} 33. Bc4 {[%clk 0:00:58]}  Nf6 {[%clk 0:00:03]} 34. Bxe6 {[%clk 0:00:58]}  Kxe6 {[%clk 0:00:04]} 35. Kd3 {[%clk 0:00:58]}  h5 {[%clk 0:00:03]} 36. Nc4 {[%clk 0:00:55]}  Nb8 {[%clk 0:00:01]} 37. Rf5 {[%clk 0:00:53]}  Nbd7 {[%clk 0:00:01]} 38. Rxg5 {[%clk 0:00:53]}  b5 {[%clk 0:00:01]} 39. axb5 {[%clk 0:00:53]}  axb5 {[%clk 0:00:02]} 40. Ne3 {[%clk 0:00:52]}  c5 {[%clk 0:00:03]} 41. Nd5 {[%clk 0:00:48]}  c4+ {[%clk 0:00:02]} 42. Ke3 {[%clk 0:00:48]}  Ng4+ {[%clk 0:00:02]} 43. Ke2 {[%clk 0:00:48]}  Nxh2 {[%clk 0:00:01]} 44. Rxh5 {[%clk 0:00:48]}  Ng4 {[%clk 0:00:02]} 45. Rg5 {[%clk 0:00:49]}  Nh6 {[%clk 0:00:01]} 46. Rg6+ {[%clk 0:00:49]}  Kf7 {[%clk 0:00:02]} 47. Rxh6 {[%clk 0:00:49]}  Nf8 {[%clk 0:00:02]} 48. Rf6+ {[%clk 0:00:49]}  Kg7 {[%clk 0:00:01]} 49. Rxf8 {[%clk 0:00:50]}  Kxf8 {[%clk 0:00:01]} 50. Nc7 {[%clk 0:00:50]} 1-0


[Site "https://www.chess.com"]

[Event "Titled Tuesday Blitz October 31 Early 2023"]
[White "Vakhlamov, Igor L."]
[Black "Preotu, Razvan"]
[WhiteFideId "24126748"]
[BlackFideId "2613280"]
[WhiteElo "2827"]
[BlackElo "2718"]
[Result "0-1"]
[Round "11"]
[TimeControl "180+1"]
[Date "2023.10.31"]
[WhiteClock "0:01:57"]
[BlackClock "0:01:02"]
[Board "16"]

1. e4 {[%clk 0:03:00]}  c5 {[%clk 0:02:59]} 2. Nf3 {[%clk 0:03:01]}  d6 {[%clk 0:03:00]} 3. Nc3 {[%clk 0:03:02]}  Nf6 {[%clk 0:02:59]} 4. d4 {[%clk 0:03:02]}  cxd4 {[%clk 0:03:00]} 5. Qxd4 {[%clk 0:03:02]}  Nc6 {[%clk 0:03:00]} 6. Bb5 {[%clk 0:03:02]}  Bd7 {[%clk 0:03:00]} 7. Bxc6 {[%clk 0:03:03]}  Bxc6 {[%clk 0:03:01]} 8. Bg5 {[%clk 0:03:03]}  e6 {[%clk 0:03:01]} 9. O-O-O {[%clk 0:03:03]}  Be7 {[%clk 0:03:02]} 10. Rhe1 {[%clk 0:03:03]}  O-O {[%clk 0:02:58]} 11. e5 {[%clk 0:03:03]}  dxe5 {[%clk 0:02:52]} 12. Nxe5 {[%clk 0:03:04]}  Qc7 {[%clk 0:02:40]} 13. Qc4 {[%clk 0:03:03]}  Rac8 {[%clk 0:02:21]} 14. Nxc6 {[%clk 0:03:03]}  bxc6 {[%clk 0:02:20]} 15. g3 {[%clk 0:02:58]}  Qb7 {[%clk 0:02:09]} 16. Ne4 {[%clk 0:02:27]}  Nd5 {[%clk 0:01:36]} 17. Bxe7 {[%clk 0:02:24]}  Qxe7 {[%clk 0:01:37]} 18. f4 {[%clk 0:02:21]}  Rb8 {[%clk 0:01:33]} 19. a3 {[%clk 0:02:21]}  Qb7 {[%clk 0:01:30]} 20. b3 {[%clk 0:02:20]}  Rfd8 {[%clk 0:01:22]} 21. Kb2 {[%clk 0:02:11]}  Qb6 {[%clk 0:01:21]} 22. Qc5 {[%clk 0:02:09]}  g6 {[%clk 0:01:02]} 23. c4 {[%clk 0:02:01]}  Qxb3+ {[%clk 0:01:01]} 24. Ka1 {[%clk 0:01:57]}  Qb2# {[%clk 0:01:02]} 0-1


[Site "https://www.chess.com"]